[Event "Titled Tuesday Blitz July 4 Early 2023"]
[White "Reprintsev, Alexander"]
[Black "Galchenko, Matvey"]
[WhiteFideId "14100541"]
[BlackFideId "24175480"]
[WhiteElo "2483"]
[BlackElo "2874"]
[Result "0-1"]
[Round "1"]
[TimeControl "180+2"]
[Date "2023.07.04"]
[WhiteClock "0:00:10"]
[BlackClock "0:00:06"]
[Board "46"]

1. e4 {[%clk 0:02:56]}  e6 {[%clk 0:02:54]} 2. d4 {[%clk 0:02:55]}  d5 {[%clk 0:02:55]} 3. Nc3 {[%clk 0:02:55]}  Bb4 {[%clk 0:02:53]} 4. Ne2 {[%clk 0:02:54]}  Nf6 {[%clk 0:02:47]} 5. e5 {[%clk 0:02:50]}  Nfd7 {[%clk 0:02:47]} 6. a3 {[%clk 0:02:50]}  Be7 {[%clk 0:02:47]} 7. f4 {[%clk 0:02:49]}  c5 {[%clk 0:02:47]} 8. Be3 {[%clk 0:02:48]}  Nc6 {[%clk 0:02:47]} 9. g3 {[%clk 0:02:34]}  O-O {[%clk 0:02:28]} 10. Bg2 {[%clk 0:02:33]}  f6 {[%clk 0:02:21]} 11. exf6 {[%clk 0:02:18]}  Nxf6 {[%clk 0:02:15]} 12. Qd2 {[%clk 0:02:08]}  b6 {[%clk 0:01:35]} 13. Bh3 {[%clk 0:01:58]}  Rb8 {[%clk 0:01:30]} 14. O-O {[%clk 0:01:51]}  Bd6 {[%clk 0:01:21]} 15. Rae1 {[%clk 0:01:49]}  Qe7 {[%clk 0:01:16]} 16. Bf2 {[%clk 0:01:39]}  Re8 {[%clk 0:01:10]} 17. Nc1 {[%clk 0:01:33]}  Nxd4 {[%clk 0:01:03]} 18. Bxd4 {[%clk 0:01:30]}  cxd4 {[%clk 0:01:04]} 19. Nb5 {[%clk 0:01:29]}  Ne4 {[%clk 0:01:04]} 20. Qd3 {[%clk 0:01:17]}  Ba6 {[%clk 0:01:04]} 21. a4 {[%clk 0:01:16]}  Qf6 {[%clk 0:00:46]} 22. b3 {[%clk 0:01:09]}  Rbc8 {[%clk 0:00:44]} 23. Ne2 {[%clk 0:01:08]}  Bc5 {[%clk 0:00:40]} 24. Kg2 {[%clk 0:01:07]}  Re7 {[%clk 0:00:37]} 25. Rd1 {[%clk 0:01:07]}  h5 {[%clk 0:00:29]} 26. Ng1 {[%clk 0:00:53]}  Rce8 {[%clk 0:00:16]} 27. Nf3 {[%clk 0:00:53]}  Nc3 {[%clk 0:00:15]} 28. Rde1 {[%clk 0:00:52]}  Nxb5 {[%clk 0:00:12]} 29. axb5 {[%clk 0:00:52]}  Bb7 {[%clk 0:00:12]} 30. Ne5 {[%clk 0:00:50]}  Rc7 {[%clk 0:00:13]} 31. Re2 {[%clk 0:00:49]}  Bd6 {[%clk 0:00:13]} 32. Rfe1 {[%clk 0:00:48]}  Bb4 {[%clk 0:00:13]} 33. Rd1 {[%clk 0:00:48]}  Bc3 {[%clk 0:00:12]} 34. Kf1 {[%clk 0:00:32]}  g5 {[%clk 0:00:11]} 35. Qg6+ {[%clk 0:00:29]}  Qxg6 {[%clk 0:00:10]} 36. Nxg6 {[%clk 0:00:29]}  g4 {[%clk 0:00:07]} 37. Bg2 {[%clk 0:00:29]}  Rc5 {[%clk 0:00:07]} 38. f5 {[%clk 0:00:23]}  Kf7 {[%clk 0:00:05]} 39. Ne5+ {[%clk 0:00:19]}  Kg7 {[%clk 0:00:06]} 40. Nd3 {[%clk 0:00:20]}  Rxb5 {[%clk 0:00:03]} 41. fxe6 {[%clk 0:00:20]}  Bc8 {[%clk 0:00:03]} 42. Nf4 {[%clk 0:00:18]}  h4 {[%clk 0:00:04]} 43. gxh4 {[%clk 0:00:18]}  Rc5 {[%clk 0:00:05]} 44. Kg1 {[%clk 0:00:18]}  Ba6 {[%clk 0:00:05]} 45. Rf2 {[%clk 0:00:17]}  d3 {[%clk 0:00:05]} 46. cxd3 {[%clk 0:00:17]}  Bd4 {[%clk 0:00:05]} 47. Rd2 {[%clk 0:00:15]}  Rc1+ {[%clk 0:00:05]} 48. Bf1 {[%clk 0:00:15]}  Be3 {[%clk 0:00:06]} 49. Kg2 {[%clk 0:00:15]}  d4 {[%clk 0:00:07]} 50. Kg3 {[%clk 0:00:12]}  Bxd2 {[%clk 0:00:06]} 51. Rxd2 {[%clk 0:00:12]}  Rxf1 {[%clk 0:00:07]} 52. Kxg4 {[%clk 0:00:11]}  Kf6 {[%clk 0:00:07]} 53. Re2 {[%clk 0:00:11]}  Rg8+ {[%clk 0:00:07]} 54. Kh3 {[%clk 0:00:10]}  Rf3# {[%clk 0:00:06]} 0-1


[Site "https://www.chess.com"]

[Event "Titled Tuesday Blitz July 4 Early 2023"]
[White "Kovalenko, Igor"]
[Black "Yeritsyan, Hayk"]
[WhiteFideId "14117908"]
[BlackFideId "13307320"]
[WhiteElo "2871"]
[BlackElo "2482"]
[Result "1-0"]
[Round "1"]
[TimeControl "180+2"]
[Date "2023.07.04"]
[WhiteClock "0:02:07"]
[BlackClock "0:00:18"]
[Board "47"]

1. c4 {[%clk 0:02:58]}  c6 {[%clk 0:02:54]} 2. Nf3 {[%clk 0:02:57]}  d5 {[%clk 0:02:54]} 3. e3 {[%clk 0:02:58]}  Nf6 {[%clk 0:02:54]} 4. Nc3 {[%clk 0:02:58]}  Bg4 {[%clk 0:02:34]} 5. cxd5 {[%clk 0:02:53]}  cxd5 {[%clk 0:02:34]} 6. Qb3 {[%clk 0:02:53]}  Bc8 {[%clk 0:02:12]} 7. d4 {[%clk 0:02:49]}  e6 {[%clk 0:02:10]} 8. Bd3 {[%clk 0:02:48]}  Bd6 {[%clk 0:02:10]} 9. Bd2 {[%clk 0:02:48]}  O-O {[%clk 0:02:10]} 10. Rc1 {[%clk 0:02:48]}  Nc6 {[%clk 0:02:11]} 11. O-O {[%clk 0:02:47]}  a6 {[%clk 0:02:07]} 12. Na4 {[%clk 0:02:46]}  Na5 {[%clk 0:01:59]} 13. Qb6 {[%clk 0:02:45]}  Nc6 {[%clk 0:01:47]} 14. Qxd8 {[%clk 0:02:39]}  Rxd8 {[%clk 0:01:47]} 15. Nb6 {[%clk 0:02:39]}  Rb8 {[%clk 0:01:47]} 16. Bxa6 {[%clk 0:02:38]}  Nxd4 {[%clk 0:01:19]} 17. Nxd4 {[%clk 0:02:34]}  bxa6 {[%clk 0:01:18]} 18. Nc6 {[%clk 0:02:34]}  Rxb6 {[%clk 0:01:13]} 19. Nxd8 {[%clk 0:02:34]}  Bd7 {[%clk 0:01:13]} 20. b3 {[%clk 0:02:29]}  Kf8 {[%clk 0:01:11]} 21. Ba5 {[%clk 0:02:29]}  Rb5 {[%clk 0:01:10]} 22. Bc3 {[%clk 0:02:26]}  Rb6 {[%clk 0:01:09]} 23. Bd4 {[%clk 0:02:25]}  Rb5 {[%clk 0:01:01]} 24. Nc6 {[%clk 0:02:25]}  Ne4 {[%clk 0:00:56]} 25. Ne5 {[%clk 0:02:23]}  Ke7 {[%clk 0:00:49]} 26. Nxd7 {[%clk 0:02:22]}  Kxd7 {[%clk 0:00:49]} 27. Bxg7 {[%clk 0:02:22]}  a5 {[%clk 0:00:49]} 28. Rc2 {[%clk 0:02:21]}  a4 {[%clk 0:00:48]} 29. bxa4 {[%clk 0:02:21]}  Ra5 {[%clk 0:00:48]} 30. Rb1 {[%clk 0:02:20]}  Rxa4 {[%clk 0:00:46]} 31. Rb7+ {[%clk 0:02:20]}  Kd8 {[%clk 0:00:47]} 32. Rxf7 {[%clk 0:02:18]}  Be7 {[%clk 0:00:45]} 33. Be5 {[%clk 0:02:13]}  Rc4 {[%clk 0:00:33]} 34. Rxc4 {[%clk 0:02:12]}  dxc4 {[%clk 0:00:34]} 35. Rxh7 {[%clk 0:02:13]}  c3 {[%clk 0:00:33]} 36. Bxc3 {[%clk 0:02:12]}  Nxc3 {[%clk 0:00:33]} 37. Rh8+ {[%clk 0:02:12]}  Kd7 {[%clk 0:00:33]} 38. Ra8 {[%clk 0:02:13]}  Kc7 {[%clk 0:00:28]} 39. g3 {[%clk 0:02:11]}  Bd6 {[%clk 0:00:26]} 40. h4 {[%clk 0:02:10]}  Be5 {[%clk 0:00:25]} 41. Kg2 {[%clk 0:02:08]}  Kb7 {[%clk 0:00:24]} 42. Re8 {[%clk 0:02:07]}  Kc6 {[%clk 0:00:21]} 43. Rxe6+ {[%clk 0:02:07]}  Kd5 {[%clk 0:00:22]} 44. Ra6 {[%clk 0:02:07]}  Bd6 {[%clk 0:00:18]} 45. h5 {[%clk 0:02:07]} 1-0


[Site "https://www.chess.com"]

[Event "Titled Tuesday Blitz July 4 Early 2023"]
[White "Bacrot, Etienne"]
[Black "Rizzo, Tobias"]
[WhiteFideId "605506"]
[BlackFideId "30942691"]
[WhiteElo "2870"]
[BlackElo "2477"]
[Result "1-0"]
[Round "1"]
[TimeControl "180+2"]
[Date "2023.07.04"]
[WhiteClock "0:00:16"]
[BlackClock "0:00:06"]
[Board "49"]

1. e4 {[%clk 0:02:36]}  c5 {[%clk 0:02:59]} 2. Nf3 {[%clk 0:02:35]}  e6 {[%clk 0:03:00]} 3. b3 {[%clk 0:02:35]}  Nc6 {[%clk 0:02:57]} 4. Bb2 {[%clk 0:02:34]}  Nf6 {[%clk 0:02:56]} 5. e5 {[%clk 0:02:33]}  Nd5 {[%clk 0:02:55]} 6. Nc3 {[%clk 0:02:33]}  d6 {[%clk 0:02:55]} 7. exd6 {[%clk 0:02:30]}  Bxd6 {[%clk 0:02:55]} 8. Nxd5 {[%clk 0:02:30]}  exd5 {[%clk 0:02:56]} 9. Bxg7 {[%clk 0:02:29]}  Rg8 {[%clk 0:02:52]} 10. Qe2+ {[%clk 0:02:25]}  Be6 {[%clk 0:02:52]} 11. Bb2 {[%clk 0:02:25]}  Qa5 {[%clk 0:02:42]} 12. Qb5 {[%clk 0:02:22]}  Qc7 {[%clk 0:02:38]} 13. O-O-O {[%clk 0:02:16]}  a6 {[%clk 0:02:38]} 14. Qe2 {[%clk 0:02:05]}  O-O-O {[%clk 0:01:52]} 15. Kb1 {[%clk 0:01:59]}  Bf5 {[%clk 0:01:41]} 16. Re1 {[%clk 0:01:55]}  Qa5 {[%clk 0:01:36]} 17. d3 {[%clk 0:01:39]}  c4 {[%clk 0:01:29]} 18. Qd2 {[%clk 0:01:31]}  Bb4 {[%clk 0:01:24]} 19. c3 {[%clk 0:01:31]}  Bd6 {[%clk 0:01:15]} 20. b4 {[%clk 0:01:21]}  Nxb4 {[%clk 0:01:08]} 21. cxb4 {[%clk 0:01:20]}  Bxb4 {[%clk 0:01:09]} 22. Qf4 {[%clk 0:01:19]}  d4 {[%clk 0:01:04]} 23. Re5 {[%clk 0:01:16]}  Qa4 {[%clk 0:00:54]} 24. Qxf5+ {[%clk 0:01:10]}  Kb8 {[%clk 0:00:54]} 25. Qf4 {[%clk 0:00:59]}  Bd6 {[%clk 0:00:41]} 26. dxc4 {[%clk 0:00:55]}  f6 {[%clk 0:00:34]} 27. Qxf6 {[%clk 0:00:28]}  Qd1+ {[%clk 0:00:32]} 28. Bc1 {[%clk 0:00:28]}  Rgf8 {[%clk 0:00:22]} 29. Qg5 {[%clk 0:00:18]}  Bxe5 {[%clk 0:00:17]} 30. Qxe5+ {[%clk 0:00:17]}  Ka8 {[%clk 0:00:17]} 31. Qe2 {[%clk 0:00:16]}  Qa4 {[%clk 0:00:17]} 32. Qc2 {[%clk 0:00:16]}  Qc6 {[%clk 0:00:16]} 33. Bd3 {[%clk 0:00:16]}  Qc5 {[%clk 0:00:06]} 34. Rd1 {[%clk 0:00:16]} 1-0


[Site "https://www.chess.com"]

[Event "Titled Tuesday Blitz July 4 Early 2023"]
[White "Kosakowski, Jakub"]
[Black "Fiedorek, Michal"]
[WhiteFideId "1185080"]
[BlackFideId "1199528"]
[WhiteElo "2837"]
[BlackElo "2468"]
[Result "1-0"]
[Round "1"]
[TimeControl "180+2"]
[Date "2023.07.04"]
[WhiteClock "0:00:16"]
[BlackClock "0:00:08"]
[Board "57"]

1. e4 {[%clk 0:02:41]}  c6 {[%clk 0:02:55]} 2. d4 {[%clk 0:02:37]}  d5 {[%clk 0:02:51]} 3. Nd2 {[%clk 0:02:19]}  dxe4 {[%clk 0:02:44]} 4. Nxe4 {[%clk 0:02:20]}  Nf6 {[%clk 0:02:45]} 5. Nxf6+ {[%clk 0:02:19]}  exf6 {[%clk 0:02:46]} 6. c3 {[%clk 0:02:20]}  Bd6 {[%clk 0:02:45]} 7. Bd3 {[%clk 0:02:20]}  Qc7 {[%clk 0:02:45]} 8. Qc2 {[%clk 0:02:19]}  h5 {[%clk 0:02:43]} 9. Ne2 {[%clk 0:02:17]}  O-O {[%clk 0:02:43]} 10. Be3 {[%clk 0:02:17]}  Re8 {[%clk 0:02:43]} 11. O-O-O {[%clk 0:02:16]}  Nd7 {[%clk 0:02:22]} 12. g4 {[%clk 0:02:14]}  hxg4 {[%clk 0:02:20]} 13. Rdg1 {[%clk 0:02:14]}  c5 {[%clk 0:02:14]} 14. Bf5 {[%clk 0:02:03]}  cxd4 {[%clk 0:02:13]} 15. Nxd4 {[%clk 0:02:02]}  Ne5 {[%clk 0:02:06]} 16. h3 {[%clk 0:01:56]}  Bc5 {[%clk 0:01:38]} 17. hxg4 {[%clk 0:01:51]}  Bxd4 {[%clk 0:01:32]} 18. Bxd4 {[%clk 0:01:45]}  Nf3 {[%clk 0:01:30]} 19. Bxc8 {[%clk 0:01:45]}  Nxd4 {[%clk 0:01:22]} 20. Qh7+ {[%clk 0:01:16]}  Kf8 {[%clk 0:01:21]} 21. Bf5 {[%clk 0:00:38]}  Ne2+ {[%clk 0:00:41]} 22. Kb1 {[%clk 0:00:37]}  Nxg1 {[%clk 0:00:39]} 23. Rxg1 {[%clk 0:00:37]}  Qe5 {[%clk 0:00:30]} 24. Qh8+ {[%clk 0:00:22]}  Ke7 {[%clk 0:00:30]} 25. Qxg7 {[%clk 0:00:23]}  Rad8 {[%clk 0:00:28]} 26. a3 {[%clk 0:00:23]}  Rd2 {[%clk 0:00:27]} 27. Qh6 {[%clk 0:00:22]}  Qe2 {[%clk 0:00:24]} 28. Kc1 {[%clk 0:00:15]}  Rxb2 {[%clk 0:00:17]} 29. Qf4 {[%clk 0:00:15]}  Ra2 {[%clk 0:00:14]} 30. Qb4+ {[%clk 0:00:15]}  Kd8 {[%clk 0:00:08]} 31. Qd6# {[%clk 0:00:16]} 1-0


[Site "https://www.chess.com"]

[Event "Titled Tuesday Blitz July 4 Early 2023"]
[White "Guliev, Logman"]
[Black "Svane, Frederik"]
[WhiteFideId "13400061"]
[BlackFideId "12923044"]
[WhiteElo "2466"]
[BlackElo "2835"]
[Result "1-0"]
[Round "1"]
[TimeControl "180+2"]
[Date "2023.07.04"]
[WhiteClock "0:00:07"]
[BlackClock "0:00:00"]
[Board "60"]

1. e4 {[%clk 0:02:57]}  c5 {[%clk 0:02:58]} 2. Nf3 {[%clk 0:02:57]}  e6 {[%clk 0:02:52]} 3. d4 {[%clk 0:02:57]}  cxd4 {[%clk 0:02:52]} 4. Nxd4 {[%clk 0:02:57]}  Nc6 {[%clk 0:02:51]} 5. Nxc6 {[%clk 0:02:56]}  bxc6 {[%clk 0:02:51]} 6. Bd3 {[%clk 0:02:56]}  d5 {[%clk 0:02:50]} 7. O-O {[%clk 0:02:54]}  Nf6 {[%clk 0:02:50]} 8. Nd2 {[%clk 0:02:55]}  Be7 {[%clk 0:02:50]} 9. c4 {[%clk 0:02:55]}  O-O {[%clk 0:02:46]} 10. Qc2 {[%clk 0:02:55]}  h6 {[%clk 0:02:41]} 11. b3 {[%clk 0:02:53]}  a5 {[%clk 0:02:40]} 12. Bb2 {[%clk 0:02:53]}  Bb7 {[%clk 0:02:40]} 13. Rad1 {[%clk 0:02:35]}  Rc8 {[%clk 0:02:37]} 14. Rfe1 {[%clk 0:02:30]}  Qc7 {[%clk 0:02:36]} 15. h3 {[%clk 0:02:18]}  Rfd8 {[%clk 0:02:32]} 16. e5 {[%clk 0:02:14]}  Nd7 {[%clk 0:02:31]} 17. Nf3 {[%clk 0:02:15]}  Bb4 {[%clk 0:02:29]} 18. Re3 {[%clk 0:02:11]}  Nc5 {[%clk 0:02:28]} 19. Bf1 {[%clk 0:02:06]}  Ne4 {[%clk 0:02:06]} 20. Bd3 {[%clk 0:02:04]}  Bc5 {[%clk 0:01:56]} 21. Re2 {[%clk 0:01:58]}  a4 {[%clk 0:01:36]} 22. Bxe4 {[%clk 0:01:49]}  dxe4 {[%clk 0:01:35]} 23. Rxe4 {[%clk 0:01:43]}  axb3 {[%clk 0:01:33]} 24. axb3 {[%clk 0:01:43]}  Rxd1+ {[%clk 0:01:28]} 25. Qxd1 {[%clk 0:01:42]}  Rd8 {[%clk 0:01:28]} 26. Qe2 {[%clk 0:01:34]}  Qb6 {[%clk 0:01:25]} 27. Qc2 {[%clk 0:01:22]}  Be7 {[%clk 0:01:18]} 28. Re2 {[%clk 0:01:20]}  c5 {[%clk 0:01:17]} 29. Nd2 {[%clk 0:01:08]}  Bc6 {[%clk 0:01:12]} 30. Nf1 {[%clk 0:01:00]}  Rb8 {[%clk 0:01:07]} 31. Re3 {[%clk 0:00:54]}  Bg5 {[%clk 0:01:03]} 32. Rg3 {[%clk 0:00:48]}  Bf4 {[%clk 0:00:59]} 33. Rc3 {[%clk 0:00:44]}  Bxe5 {[%clk 0:00:56]} 34. Re3 {[%clk 0:00:41]}  Bf4 {[%clk 0:00:45]} 35. Qc3 {[%clk 0:00:23]}  e5 {[%clk 0:00:38]} 36. Rxe5 {[%clk 0:00:22]}  Bxe5 {[%clk 0:00:39]} 37. Qxe5 {[%clk 0:00:23]}  f6 {[%clk 0:00:39]} 38. Qe6+ {[%clk 0:00:22]}  Kh7 {[%clk 0:00:19]} 39. Qf5+ {[%clk 0:00:15]}  Kh8 {[%clk 0:00:18]} 40. Bxf6 {[%clk 0:00:14]}  Rf8 {[%clk 0:00:10]} 41. Bxg7+ {[%clk 0:00:06]}  Kxg7 {[%clk 0:00:11]} 42. Qe5+ {[%clk 0:00:06]}  Rf6 {[%clk 0:00:12]} 43. Ng3 {[%clk 0:00:06]}  Kg6 {[%clk 0:00:08]} 44. Nh5 {[%clk 0:00:05]}  Qd8 {[%clk 0:00:03]} 45. Nxf6 {[%clk 0:00:04]}  Qxf6 {[%clk 0:00:03]} 46. Qxc5 {[%clk 0:00:05]}  Qa1+ {[%clk 0:00:03]} 47. Kh2 {[%clk 0:00:04]}  Qf6 {[%clk 0:00:04]} 48. Qe3 {[%clk 0:00:04]}  Qd6+ {[%clk 0:00:04]} 49. f4 {[%clk 0:00:04]}  Kf7 {[%clk 0:00:04]} 50. g4 {[%clk 0:00:03]}  Qa3 {[%clk 0:00:04]} 51. Kg3 {[%clk 0:00:04]}  Qb2 {[%clk 0:00:04]} 52. f5 {[%clk 0:00:03]}  Qg2+ {[%clk 0:00:03]} 53. Kh4 {[%clk 0:00:03]}  Qb2 {[%clk 0:00:04]} 54. Qe6+ {[%clk 0:00:03]}  Kf8 {[%clk 0:00:04]} 55. Qd6+ {[%clk 0:00:03]}  Kf7 {[%clk 0:00:04]} 56. Qe6+ {[%clk 0:00:03]}  Kg7 {[%clk 0:00:04]} 57. Qg6+ {[%clk 0:00:03]}  Kf8 {[%clk 0:00:04]} 58. Qxc6 {[%clk 0:00:03]}  Qd2 {[%clk 0:00:04]} 59. Qf6+ {[%clk 0:00:03]}  Kg8 {[%clk 0:00:04]} 60. Qg6+ {[%clk 0:00:03]}  Kf8 {[%clk 0:00:05]} 61. Kh5 {[%clk 0:00:03]}  Qd3 {[%clk 0:00:04]} 62. Qxh6+ {[%clk 0:00:04]}  Ke7 {[%clk 0:00:04]} 63. Qg7+ {[%clk 0:00:04]}  Kd8 {[%clk 0:00:05]} 64. Qf8+ {[%clk 0:00:03]}  Kd7 {[%clk 0:00:05]} 65. Qf7+ {[%clk 0:00:03]}  Kc8 {[%clk 0:00:06]} 66. Qe6+ {[%clk 0:00:03]}  Kc7 {[%clk 0:00:07]} 67. h4 {[%clk 0:00:04]}  Qf3 {[%clk 0:00:06]} 68. f6 {[%clk 0:00:04]}  Qd3 {[%clk 0:00:05]} 69. f7 {[%clk 0:00:03]}  Qh7+ {[%clk 0:00:05]} 70. Kg5 {[%clk 0:00:03]}  Qg7+ {[%clk 0:00:06]} 71. Kf4 {[%clk 0:00:04]}  Qd4+ {[%clk 0:00:06]} 72. Kf5 {[%clk 0:00:04]}  Qd3+ {[%clk 0:00:06]} 73. Qe4 {[%clk 0:00:04]}  Qd7+ {[%clk 0:00:06]} 74. Kg6 {[%clk 0:00:05]}  Qd6+ {[%clk 0:00:05]} 75. Kg7 {[%clk 0:00:05]}  Qd7 {[%clk 0:00:06]} 76. Qe5+ {[%clk 0:00:06]}  Kb6 {[%clk 0:00:05]} 77. Qf6+ {[%clk 0:00:06]}  Ka7 {[%clk 0:00:05]} 78. Kg8 {[%clk 0:00:06]}  Qxg4+ {[%clk 0:00:05]} 79. Qg7 {[%clk 0:00:07]}  Qe6 {[%clk 0:00:00]} 80. Kh8 {[%clk 0:00:07]} 1-0


[Site "https://www.chess.com"]

[Event "Titled Tuesday Blitz July 4 Early 2023"]
[White "Gatterer, Florian"]
[Black "Stribuk, Artiom"]
[WhiteFideId "811688"]
[BlackFideId "13515659"]
[WhiteElo "2460"]
[BlackElo "2814"]
[Result "0-1"]
[Round "1"]
[TimeControl "180+2"]
[Date "2023.07.04"]
[WhiteClock "0:00:00"]
[BlackClock "0:00:46"]
[Board "66"]

1. d4 {[%clk 0:03:00]}  Nf6 {[%clk 0:02:59]} 2. Bg5 {[%clk 0:02:58]}  d5 {[%clk 0:02:55]} 3. e3 {[%clk 0:02:50]}  c5 {[%clk 0:02:41]} 4. Bxf6 {[%clk 0:02:50]}  gxf6 {[%clk 0:02:40]} 5. dxc5 {[%clk 0:02:50]}  e6 {[%clk 0:02:40]} 6. c4 {[%clk 0:02:48]}  Qa5+ {[%clk 0:02:17]} 7. Nc3 {[%clk 0:02:47]}  dxc4 {[%clk 0:02:17]} 8. Bxc4 {[%clk 0:02:43]}  Bxc5 {[%clk 0:02:17]} 9. Ne2 {[%clk 0:02:40]}  Nc6 {[%clk 0:02:15]} 10. a3 {[%clk 0:02:40]}  Be7 {[%clk 0:02:15]} 11. O-O {[%clk 0:02:32]}  Bd7 {[%clk 0:02:07]} 12. b4 {[%clk 0:02:15]}  Qe5 {[%clk 0:02:06]} 13. Nd4 {[%clk 0:02:10]}  Nxd4 {[%clk 0:01:54]} 14. exd4 {[%clk 0:02:09]}  Qc7 {[%clk 0:01:54]} 15. Bb5 {[%clk 0:01:43]}  Qxc3 {[%clk 0:01:53]} 16. Bxd7+ {[%clk 0:01:43]}  Kxd7 {[%clk 0:01:54]} 17. Rc1 {[%clk 0:01:42]}  Qxa3 {[%clk 0:01:48]} 18. Ra1 {[%clk 0:01:39]}  Qxb4 {[%clk 0:01:37]} 19. Rb1 {[%clk 0:01:38]}  Qa5 {[%clk 0:01:32]} 20. Rxb7+ {[%clk 0:01:38]}  Ke8 {[%clk 0:01:33]} 21. Qb3 {[%clk 0:01:26]}  Rd8 {[%clk 0:01:26]} 22. h4 {[%clk 0:01:22]}  Rg8 {[%clk 0:01:25]} 23. g3 {[%clk 0:00:55]}  Rg4 {[%clk 0:01:06]} 24. Rc1 {[%clk 0:00:48]}  Rgxd4 {[%clk 0:01:02]} 25. Rcc7 {[%clk 0:00:42]}  R4d7 {[%clk 0:00:52]} 26. Rxd7 {[%clk 0:00:42]}  Rxd7 {[%clk 0:00:53]} 27. Rxd7 {[%clk 0:00:42]}  Kxd7 {[%clk 0:00:53]} 28. Qb7+ {[%clk 0:00:41]}  Qc7 {[%clk 0:00:53]} 29. Qb5+ {[%clk 0:00:40]}  Qc6 {[%clk 0:00:54]} 30. Qd3+ {[%clk 0:00:40]}  Bd6 {[%clk 0:00:54]} 31. Qxh7 {[%clk 0:00:40]}  Ke7 {[%clk 0:00:54]} 32. Qb1 {[%clk 0:00:32]}  Qc5 {[%clk 0:00:49]} 33. Qd1 {[%clk 0:00:29]}  Bxg3 {[%clk 0:00:46]} 34. Kg2 {[%clk 0:00:00]}  Qxf2+ {[%clk 0:00:46]} 0-1


[Site "https://www.chess.com"]

[Event "Titled Tuesday Blitz July 4 Early 2023"]
[White "Goltsev, Dmitry"]
[Black "Sukandar, Irine Kharisma"]
[WhiteFideId "24176710"]
[BlackFideId "7101937"]
[WhiteElo "2804"]
[BlackElo "2459"]
[Result "1-0"]
[Round "1"]
[TimeControl "180+2"]
[Date "2023.07.04"]
[WhiteClock "0:01:05"]
[BlackClock "0:00:00"]
[Board "67"]

1. e4 {[%clk 0:03:00]}  c5 {[%clk 0:02:57]} 2. Nf3 {[%clk 0:03:00]}  e6 {[%clk 0:02:56]} 3. d4 {[%clk 0:03:00]}  cxd4 {[%clk 0:02:56]} 4. Nxd4 {[%clk 0:03:01]}  Nc6 {[%clk 0:02:57]} 5. Nc3 {[%clk 0:03:02]}  Qb6 {[%clk 0:02:56]} 6. Nb3 {[%clk 0:03:02]}  Nf6 {[%clk 0:02:55]} 7. Be3 {[%clk 0:03:02]}  Qc7 {[%clk 0:02:54]} 8. f3 {[%clk 0:03:02]}  Bb4 {[%clk 0:02:49]} 9. Be2 {[%clk 0:03:02]}  d5 {[%clk 0:02:48]} 10. exd5 {[%clk 0:03:02]}  Nxd5 {[%clk 0:02:48]} 11. Bd2 {[%clk 0:03:03]}  Nxc3 {[%clk 0:02:43]} 12. bxc3 {[%clk 0:03:04]}  Be7 {[%clk 0:02:42]} 13. O-O {[%clk 0:03:04]}  O-O {[%clk 0:02:42]} 14. Be1 {[%clk 0:03:02]}  Rd8 {[%clk 0:02:33]} 15. Qc1 {[%clk 0:03:02]}  Bd6 {[%clk 0:02:31]} 16. g3 {[%clk 0:03:01]}  e5 {[%clk 0:02:18]} 17. Bf2 {[%clk 0:03:00]}  b6 {[%clk 0:02:17]} 18. Rd1 {[%clk 0:03:01]}  Bb7 {[%clk 0:02:17]} 19. c4 {[%clk 0:03:01]}  Ne7 {[%clk 0:01:56]} 20. a4 {[%clk 0:02:55]}  e4 {[%clk 0:01:46]} 21. f4 {[%clk 0:02:53]}  Nf5 {[%clk 0:01:29]} 22. Nd4 {[%clk 0:02:40]}  e3 {[%clk 0:00:54]} 23. Bxe3 {[%clk 0:02:17]}  Nxd4 {[%clk 0:00:52]} 24. Rxd4 {[%clk 0:02:16]}  Bc5 {[%clk 0:00:49]} 25. Rxd8+ {[%clk 0:02:10]}  Rxd8 {[%clk 0:00:49]} 26. Kf1 {[%clk 0:01:58]}  Qc6 {[%clk 0:00:46]} 27. Bxc5 {[%clk 0:01:45]}  bxc5 {[%clk 0:00:35]} 28. Qe3 {[%clk 0:01:45]}  Re8 {[%clk 0:00:29]} 29. Qg1 {[%clk 0:01:38]}  Qe4 {[%clk 0:00:18]} 30. Re1 {[%clk 0:01:37]}  Bc8 {[%clk 0:00:13]} 31. Qg2 {[%clk 0:01:34]}  Qe3 {[%clk 0:00:08]} 32. Qf2 {[%clk 0:01:18]}  Qe4 {[%clk 0:00:05]} 33. Qf3 {[%clk 0:01:14]}  Qxc2 {[%clk 0:00:04]} 34. g4 {[%clk 0:01:11]}  Bd7 {[%clk 0:00:02]} 35. Qd5 {[%clk 0:01:05]}  Bxa4 {[%clk 0:00:01]} 36. Qxc5 {[%clk 0:01:05]}  Qe4 {[%clk 0:00:00]} 37. Qf2 {[%clk 0:01:05]} 1-0


[Site "https://www.chess.com"]

[Event "Titled Tuesday Blitz July 4 Early 2023"]
[White "Manukian, Artak"]
[Black "Perez Ponsa, Federico"]
[WhiteFideId "13301373"]
[BlackFideId "117927"]
[WhiteElo "2451"]
[BlackElo "2803"]
[Result "0-1"]
[Round "1"]
[TimeControl "180+2"]
[Date "2023.07.04"]
[WhiteClock "0:00:00"]
[BlackClock "0:00:29"]
[Board "68"]

1. e4 {[%clk 0:03:00]}  e5 {[%clk 0:02:56]} 2. Nf3 {[%clk 0:03:00]}  Nc6 {[%clk 0:02:56]} 3. d4 {[%clk 0:03:00]}  exd4 {[%clk 0:02:56]} 4. Nxd4 {[%clk 0:03:01]}  Bc5 {[%clk 0:02:57]} 5. Nxc6 {[%clk 0:03:01]}  Qf6 {[%clk 0:02:56]} 6. Qf3 {[%clk 0:03:00]}  dxc6 {[%clk 0:02:55]} 7. Bc4 {[%clk 0:02:58]}  Qxf3 {[%clk 0:02:33]} 8. gxf3 {[%clk 0:02:57]}  Ne7 {[%clk 0:02:33]} 9. Be3 {[%clk 0:02:53]}  Bxe3 {[%clk 0:02:19]} 10. fxe3 {[%clk 0:02:54]}  f5 {[%clk 0:02:15]} 11. e5 {[%clk 0:02:50]}  Nd5 {[%clk 0:02:12]} 12. Kf2 {[%clk 0:02:19]}  Be6 {[%clk 0:02:10]} 13. Nc3 {[%clk 0:02:11]}  Ke7 {[%clk 0:02:01]} 14. Bxd5 {[%clk 0:02:01]}  cxd5 {[%clk 0:01:56]} 15. Rad1 {[%clk 0:02:00]}  Rad8 {[%clk 0:01:56]} 16. Rd2 {[%clk 0:01:57]}  c6 {[%clk 0:01:55]} 17. f4 {[%clk 0:01:56]}  Rhg8 {[%clk 0:01:50]} 18. h4 {[%clk 0:01:54]}  g6 {[%clk 0:01:44]} 19. Rg1 {[%clk 0:01:43]}  h6 {[%clk 0:01:42]} 20. Ke1 {[%clk 0:01:37]}  Rg7 {[%clk 0:01:42]} 21. Rdg2 {[%clk 0:01:36]}  Rdg8 {[%clk 0:01:42]} 22. Ne2 {[%clk 0:01:26]}  c5 {[%clk 0:01:41]} 23. b3 {[%clk 0:01:12]}  b5 {[%clk 0:01:38]} 24. Kf2 {[%clk 0:01:08]}  a5 {[%clk 0:01:36]} 25. Ng3 {[%clk 0:01:04]}  Kf7 {[%clk 0:01:32]} 26. c3 {[%clk 0:00:48]}  b4 {[%clk 0:01:26]} 27. Rc1 {[%clk 0:00:43]}  c4 {[%clk 0:01:18]} 28. Ne2 {[%clk 0:00:36]}  g5 {[%clk 0:01:14]} 29. hxg5 {[%clk 0:00:36]}  hxg5 {[%clk 0:01:15]} 30. Rcg1 {[%clk 0:00:25]}  g4 {[%clk 0:00:51]} 31. cxb4 {[%clk 0:00:24]}  axb4 {[%clk 0:00:51]} 32. Nd4 {[%clk 0:00:19]}  Rh7 {[%clk 0:00:49]} 33. Ke2 {[%clk 0:00:14]}  Ra8 {[%clk 0:00:48]} 34. Kd1 {[%clk 0:00:14]}  Rh3 {[%clk 0:00:48]} 35. Rg3 {[%clk 0:00:12]}  Rxg3 {[%clk 0:00:46]} 36. Rxg3 {[%clk 0:00:13]}  Rxa2 {[%clk 0:00:47]} 37. Kc1 {[%clk 0:00:12]}  Rh2 {[%clk 0:00:41]} 38. Kb1 {[%clk 0:00:10]}  c3 {[%clk 0:00:31]} 39. Rg1 {[%clk 0:00:07]}  Bd7 {[%clk 0:00:30]} 40. Rd1 {[%clk 0:00:00]}  g3 {[%clk 0:00:29]} 0-1


[Site "https://www.chess.com"]